bitfinex-derivatives/quotes_ETHF0:USTF0_20210401
["timestamp","ask_amount","ask_price","bid_price","bid_amount"]
[1617290015835,67.38,1932.4,1931.2,67.38]
[1617290016233,67.38,1932.4,1931.8,2.90695]
[1617290018134,67.38,1932.4,1932.0,2.90695]
[1617290020236,2.90695,1932.1,1932.0,2.90695]
[1617290020637,2.90695,1932.1,1932.0,74.81315]
[1617290021439,2.90695,1932.1,1932.0,71.9062]
[1617290021639,4.44905,1932.1,1932.0,71.9062]
[1617290024246,2.90695,1932.1,1932.0,71.9062]
[1617290024446,2.90695,1932.1,1931.7,2.90695]
[1617290026249,28.1831,1933.2,1932.0,2.90695]
[1617290026250,2.90695,1932.3,1932.0,2.90695]
[1617290026449,2.90695,1932.3,1932.1,88.2016]
[1617290028253,2.90695,1932.3,1932.2,2.90695]
[1617290036458,2.90695,1932.5,1932.2,2.90695]
[1617290038461,28.1831,1933.2,1932.4,2.90695]
[1617290040564,2.90695,1932.5,1932.1,88.2016]
[1617290042467,2.90695,1932.5,1932.4,2.90695]
[1617290050278,28.1831,1933.2,1932.4,2.90695]
[1617290050878,13.8613,1933.2,1933.1,2.90695]
[1617290051079,13.8613,1933.2,1933.1,4.28055]
[1617290053580,13.8613,1933.2,1933.1,2.90695]
[1617290054983,16.76825,1933.2,1933.1,2.90695]
[1617290056083,16.76825,1933.2,1932.1,1.6101]
[1617290056283,18.36255,1933.2,1933.1,64.2953]
[1617290057682,16.76825,1933.2,1933.1,64.2953]
[1617290060884,16.76825,1933.2,1931.3,5.34964648]
[1617290061084,75.2871,1933.0,1932.1,75.2871]
[1617290061485,77.2871,1933.0,1932.1,75.2871]
[1617290062986,4.54315,1932.2,1932.1,75.2871]
[1617290063988,1.5622,1932.8,1932.1,75.2871]
[1617290064888,1.5622,1932.8,1932.3,2.90695]
[1617290065489,1.5622,1932.8,1932.7,73.2136]
[1617290066591,15.4879,1933.2,1932.7,73.2136]
[1617290066791,13.8613,1933.2,1932.7,73.2136]
[1617290066990,2.90695,1932.8,1932.7,73.2136]
[1617290068891,2.90695,1932.8,1932.7,2.90695]
[1617290069892,2.90695,1932.8,1932.5,64.7839]
[1617290069893,3.98535,1932.8,1932.5,64.7839]
[1617290070295,3.98535,1932.8,1932.5,64.7665]
[1617290070493,5.03045,1932.8,1932.5,64.7665]
[1617290070692,3.98535,1932.8,1931.4,4.16566377]
[1617290070892,1.0784,1932.8,1932.7,2.90695]
[1617290072494,1.0784,1932.8,1932.6,86.4807]
[1617290072895,2.90695,1932.7,1932.0,2.90695]
[1617290073096,2.90695,1932.7,1932.1,64.3536]
[1617290073695,4.90695,1932.7,1932.1,64.3536]
[1617290074093,34.90695,1932.7,1932.1,64.3536]
[1617290074694,4.90695,1932.7,1932.1,64.3536]
[1617290075095,2.90695,1932.2,1932.0,2.90695]
[1617290076697,2.90695,1932.2,1932.1,81.1533]
[1617290079799,2.90695,1932.2,1932.0,2.90695]
[1617290080000,14.3037,1933.1,1932.0,2.90695]
[1617290080199,14.3037,1933.1,1932.2,70.8193]
[1617290081001,14.3037,1933.1,1933.0,2.90695]
[1617290082401,14.3037,1933.1,1933.0,4.17005]
[1617290083003,17.21065,1933.1,1933.0,4.17005]
[1617290087906,17.21065,1933.1,1933.0,2.90695]
[1617290088506,17.21065,1933.1,1933.0,80.86425]
[1617290088907,17.21065,1933.1,1933.0,82.51865]
[1617290089708,17.21065,1933.1,1933.0,4.56135]
[1617290090109,2.90695,1933.1,1933.0,4.56135]
[1617290091108,13.8613,1933.2,1933.0,4.56135]
[1617290096912,12.0,1933.7,1933.0,4.56135]
[1617290097112,12.0,1933.7,1933.6,2.90695]
[1617290097312,12.0,1933.7,1933.6,4.03365]
[1617290102223,12.0,1933.7,1933.6,2.90695]
[1617290113534,13.5693,1933.7,1933.6,2.90695]
[1617290114238,13.5693,1933.7,1932.2,2.0]
[1617290114436,13.5693,1933.7,1932.9,77.3731]
[1617290115336,13.5693,1933.7,1933.5,2.90695]
[1617290117337,2.90695,1933.6,1933.5,2.90695]
[1617290118938,12.0,1933.7,1933.5,2.90695]
[1617290119137,12.0,1933.7,1933.6,76.7791]
[1617290119340,12.0,1933.7,1933.6,78.0878]
[1617290122643,12.0,1933.7,1933.6,76.7791]
[1617290123342,14.90695,1933.7,1933.6,76.7791]
[1617290126645,16.26875,1933.7,1933.6,76.7791]
[1617290127546,13.3618,1933.7,1933.6,76.7791]
[1617290127746,12.0,1933.7,1933.6,76.7791]
[1617290132355,12.0,1933.7,1933.5,2.90695]
[1617290132553,12.0,1933.7,1933.6,68.4386]
[1617290132754,12.0,1933.7,1933.5,2.90695]
[1617290132954,12.0,1933.7,1933.5,3.94165]
[1617290133155,10.1475,1933.7,1933.5,3.94165]
[1617290133354,10.1475,1933.7,1933.6,2.0]
[1617290133555,9.1001,1933.7,1933.6,2.0]
[1617290134157,8.8659,1933.7,1933.6,2.0]
[1617290134358,16.1315,1934.6,1933.6,2.0]
[1617290135558,16.1315,1934.6,1934.5,4.11645]
[1617290137959,2.0,1934.6,1934.5,4.11645]
[1617290139961,0.4814,1934.6,1934.5,4.11645]
[1617290140161,14.25078565,1935.3,1934.5,4.11645]
[1617290140363,14.25078565,1935.3,1935.1,75.0037]
[1617290140561,14.25078565,1935.3,1935.1,76.0145]
[1617290141063,14.2357,1935.3,1935.1,76.0145]
[1617290141463,14.2357,1935.3,1935.2,2.90695]
[1617290143466,17.14265,1935.3,1935.2,2.90695]
[1617290145068,14.2357,1935.3,1935.2,2.90695]
[1617290146470,13.7983,1935.9,1935.2,2.90695]
[1617290147070,13.7983,1935.9,1935.3,1.2387]
[1617290147470,16.70525,1935.9,1935.8,2.90695]
[1617290147670,16.70525,1935.9,1935.8,4.17065]
[1617290152076,16.70525,1935.9,1935.8,5.20965]
[1617290152276,16.70525,1935.9,1935.8,4.17065]
[1617290155183,16.70525,1935.9,1935.8,5.19325]
[1617290155384,16.70525,1935.9,1935.8,4.17065]
[1617290157785,16.70525,1935.9,1935.8,85.05545]
[1617290164598,16.70525,1935.9,1935.8,82.1485]
[1617290168907,18.30275,1935.9,1935.8,82.1485]
[1617290170911,18.30275,1935.9,1933.1,1.4113]
[1617290171112,79.7533,1935.8,1934.7,79.7533]
[1617290171713,79.7533,1935.8,1935.0,2.90695]
[1617290171914,81.7533,1935.8,1935.0,2.90695]
[1617290173714,2.90695,1935.1,1935.0,2.90695]
[1617290173913,4.10685,1935.1,1934.7,79.7533]
[1617290175715,1.5823,1935.5,1934.9,2.90695]
[1617290177016,81.7533,1935.8,1934.9,2.90695]
[1617290177618,111.7533,1935.8,1934.7,79.7533]
[1617290177818,2.90695,1934.8,1934.7,79.7533]
[1617290178016,1.1414,1935.4,1934.9,47.09305]
[1617290178221,1.1254,1935.0,1934.9,47.09305]
[1617290179720,4.03235,1935.0,1934.9,50.0]
[1617290181021,4.03235,1935.0,1934.9,47.09305]
[1617290184128,2.90695,1935.0,1934.9,47.09305]
[1617290185029,78.37045,1935.0,1934.9,47.09305]
[1617290185530,2.90695,1935.0,1934.9,47.09305]
[1617290185731,2.90695,1935.0,1934.9,122.49615]
[1617290185931,2.0,1935.8,1934.9,122.49615]
[1617290186132,2.0,1935.8,1934.9,48.23695]
[1617290186531,2.0,1935.8,1935.3,61.1664]
[1617290186730,2.0,1935.8,1935.3,62.2414]
[1617290187734,2.90695,1935.4,1935.3,62.2414]
[1617290188332,2.90695,1935.4,1935.3,61.1664]
[1617290188832,2.90695,1935.4,1935.2,2.90695]
[1617290192437,2.90695,1935.4,1935.2,3.92745]
[1617290192636,3.94935,1935.4,1935.2,2.90695]
[1617290192836,28.7983,1935.9,1935.2,2.90695]
[1617290193037,28.7983,1935.9,1935.8,64.516]
[1617290193236,28.7983,1935.9,1935.8,66.0989]
[1617290193837,31.70525,1935.9,1935.8,69.00585]
[1617290198044,31.70525,1935.9,1935.8,4.48985]
[1617290204846,31.70525,1935.9,1935.8,80.9002]
[1617290214361,31.70525,1935.9,1935.8,127.99325]
[1617290217966,31.70525,1935.9,1935.8,48.67595]
[1617290218767,32.77555,1935.9,1935.8,48.67595]
[1617290219770,31.70525,1935.9,1935.8,48.67595]
[1617290222274,31.70525,1935.9,1935.8,51.5829]
[1617290230282,31.70525,1935.9,1935.8,48.67595]
[1617290231583,61.70525,1935.9,1935.8,47.09305]
[1617290231784,63.70525,1935.9,1935.8,46.56995]
[1617290231984,63.70525,1935.9,1935.8,46.08595]
[1617290234187,63.72036269,1935.9,1935.8,46.08595]
[1617290234987,63.70525,1935.9,1935.8,46.08595]
[1617290242502,63.72036238,1935.9,1935.8,46.08595]
[1617290242902,63.73547543,1935.9,1935.8,46.08595]
[1617290243200,63.72035515,1935.9,1935.8,45.80865]
[1617290243700,63.72035515,1935.9,1935.8,44.63415]
[1617290244101,63.73546158,1935.9,1935.8,44.63415]
[1617290246102,63.75056728,1935.9,1935.8,44.63415]
[1617290246502,60.8134057,1935.9,1935.8,44.63415]
[1617290246902,63.7203557,1935.9,1935.8,44.63415]
[1617290248505,31.70525,1935.9,1935.8,44.63415]
[1617290252906,31.70525,1935.9,1935.8,47.5411]
[1617290265221,28.7983,1935.9,1935.8,47.5411]
[1617290267624,28.7983,1935.9,1935.8,115.177]
[1617290270327,28.7983,1935.9,1935.8,47.5411]
[1617290285445,15.0,1935.9,1935.8,47.5411]
[1617290285647,15.0,1935.9,1935.8,48.5736]
[1617290285846,13.948,1935.9,1935.8,48.5736]
[1617290286046,10.8529,1935.9,1935.8,47.5411]
[1617290286247,10.8529,1935.9,1935.8,49.5411]
[1617290287046,10.8529,1935.9,1935.8,50.5607]
[1617290289449,13.8629,1936.8,1935.8,50.5607]
[1617290289651,73.0854,1936.9,1935.9,74.1148]
[1617290289851,73.0854,1936.9,1936.0,2.0]
[1617290290452,4.0,1936.9,1936.0,2.0]
[1617290290653,4.0,1936.9,1936.5,96.3231]
[1617290290855,4.0,1936.9,1936.6,2.0]
[1617290291054,4.0,1936.9,1936.6,3.0528]
[1617290291455,4.0,1936.9,1936.8,2.90695]
[1617290291657,4.0,1936.9,1936.8,4.90695]
[1617290291855,2.8846,1936.9,1936.8,4.90695]
[1617290292055,17.62905,1937.7,1937.2,100.1521]
[1617290292256,17.62905,1937.7,1937.0,100.1826]
[1617290292456,17.62905,1937.7,1937.1,82.3177]
[1617290292656,17.62905,1937.7,1937.0,1.3991]
[1617290293257,17.62905,1937.7,1937.0,2.4257]
[1617290293458,14.7221,1937.7,1937.6,92.59175]
[1617290293658,14.7221,1937.7,1937.6,4.29015]
[1617290296262,14.469,1938.1,1937.6,4.29015]
[1617290296862,14.469,1938.1,1937.8,89.5584]
[1617290297262,14.469,1938.1,1937.6,4.29015]
[1617290297463,14.469,1938.1,1938.0,4.26525]
[1617290297663,14.469,1938.1,1938.0,93.82365]
[1617290297862,14.469,1938.1,1938.0,4.26525]
[1617290298864,72.7876,1938.9,1938.0,4.26525]
[1617290299464,72.7876,1938.9,1938.8,4.21515]
[1617290300264,14.4513,1939.1,1938.8,4.21515]
[1617290301466,14.4513,1939.1,1939.0,2.90695]
[1617290302068,14.4513,1939.1,1939.0,4.38325]
[1617290302469,14.4513,1939.1,1939.0,1.4763]
[1617290302868,44.4513,1939.1,1938.8,44.63415]
[1617290303470,2.90695,1938.9,1938.8,44.63415]
[1617290307474,2.90695,1938.9,1938.8,47.5411]
[1617290307677,2.90695,1938.9,1938.8,44.63415]
[1617290308274,2.90695,1938.9,1938.8,111.44315]
[1617290309476,2.90695,1938.9,1938.8,114.3501]
[1617290312977,16.072,1939.7,1938.8,114.3501]
[1617290313177,10.60705,1939.7,1938.8,114.3501]
[1617290313379,30.0,1939.6,1938.8,114.3501]
[1617290313577,2.90695,1938.9,1938.8,111.44315]
[1617290313777,32.90695,1938.9,1938.8,44.63415]
[1617290314180,33.94955,1938.9,1938.8,44.63415]
[1617290314782,32.90695,1938.9,1938.8,44.63415]
[1617290315784,32.90695,1938.9,1938.8,109.75135]
[1617290317588,32.90695,1938.9,1938.8,112.6583]
[1617290317787,2.90695,1938.9,1938.8,112.6583]
[1617290317987,32.90695,1938.9,1938.8,112.6583]
[1617290318789,32.90695,1938.9,1938.8,113.6661]
[1617290318990,2.90695,1938.9,1938.8,113.6661]
[1617290320192,32.90695,1938.9,1938.8,113.6661]
[1617290320900,2.90695,1938.9,1938.8,113.6661]
[1617290321096,30.0,1939.3,1938.8,48.5489]
[1617290321494,30.0,1939.3,1939.2,2.90695]
[1617290321697,30.0,1939.3,1939.2,3.98055]
[1617290322095,8.60705,1939.7,1939.3,75.1858]
[1617290323495,8.60705,1939.7,1939.6,2.90695]
[1617290323697,8.60705,1939.7,1939.6,3.99805]
[1617290323896,38.60705,1939.7,1939.6,3.99805]
[1617290324498,38.60705,1939.7,1939.6,83.29915]
[1617290325599,41.514,1939.7,1939.6,83.29915]
[1617290326502,11.514,1939.7,1939.6,83.29915]
[1617290327507,8.60705,1939.7,1939.6,83.29915]
[1617290327710,8.60705,1939.7,1939.6,3.99805]
[1617290330312,8.60705,1939.7,1939.6,82.85335]
[1617290332711,8.60705,1939.7,1939.6,3.99805]
[1617290333913,8.60705,1939.7,1939.6,2.90695]
[1617290334313,9.98765,1939.7,1939.6,2.90695]
[1617290334515,9.98765,1939.7,1939.2,70.8273]
[1617290335614,8.60705,1939.7,1939.6,2.90695]
[1617290336917,25.35825,1940.6,1940.4,61.6915]
[1617290337115,2.0,1941.1,1940.4,61.6915]
[1617290337314,32.0,1941.1,1940.4,61.6915]
[1617290337714,32.0,1941.1,1940.6,2.90695]
[1617290339616,2.90695,1940.7,1940.6,2.90695]
[1617290339816,32.90695,1940.7,1940.6,2.90695]
[1617290340016,32.90695,1940.7,1940.4,61.6915]
[1617290340216,32.90695,1940.7,1939.4,1.2297]
[1617290340419,32.90695,1940.7,1940.0,59.4607]
[1617290340617,32.90695,1940.7,1940.0,60.9991]
[1617290340816,2.90695,1940.7,1940.0,60.9991]
[1617290341618,30.0,1941.1,1940.6,2.90695]
[1617290342019,30.0,1941.1,1940.5,1.0451]
[1617290342719,30.0,1941.2,1940.5,1.0451]
[1617290342920,30.0,1941.1,1940.5,1.0451]
[1617290343719,30.0,1941.1,1940.6,2.90695]
[1617290345622,2.90695,1940.7,1940.6,2.90695]
[1617290347024,2.90695,1940.7,1940.6,79.85405]
[1617290352026,32.0,1941.5,1940.6,79.85405]
[1617290352428,2.584,1941.6,1940.6,79.85405]
[1617290353827,2.584,1941.6,1941.3,2.90695]
[1617290354028,2.584,1941.6,1941.3,4.35095]
[1617290355830,2.90695,1941.4,1941.3,4.35095]
[1617290359035,3.92155,1941.4,1941.3,4.35095]
[1617290359235,2.90695,1941.4,1941.3,4.35095]
[1617290359435,2.90695,1941.4,1941.3,54.35095]
[1617290366039,16.90695,1941.4,1941.3,54.35095]
[1617290368740,18.06165,1941.4,1941.3,51.444]
[1617290368942,48.06165,1941.4,1941.3,50.0]
[1617290369141,18.06165,1941.4,1941.3,50.0]
[1617290369942,18.06165,1941.4,1941.3,127.3234]
[1617290370544,16.90695,1941.4,1941.3,127.3234]
[1617290372552,16.90695,1941.4,1941.3,50.0]
[1617290372945,47.97785,1941.4,1941.3,50.0]
[1617290373146,49.97785,1941.4,1941.3,50.0]
[1617290374050,19.97785,1941.4,1941.3,50.0]
[1617290375249,18.90695,1941.4,1941.3,50.0]
[1617290377449,16.90695,1941.4,1941.3,50.0]
[1617290377849,16.90695,1941.4,1941.3,52.90695]
[1617290381453,16.90695,1941.4,1941.3,50.0]
[1617290381860,18.90695,1941.4,1941.3,50.0]
[1617290382557,48.90695,1941.4,1941.3,50.0]
[1617290382759,48.90695,1941.4,1941.3,49.4922]
[1617290383559,48.90695,1941.4,1941.3,4.1386]
[1617290383761,48.90695,1941.4,1938.8,2.0]
[1617290383960,57.7875,1940.9,1939.1,2.90695]
[1617290384159,33.4728,1940.8,1939.1,2.90695]
[1617290384560,3.4728,1940.8,1939.3,57.7137]
[1617290384962,3.4728,1940.8,1939.3,58.9102]
[1617290385172,2.0,1940.8,1939.3,58.9102]
[1617290385363,30.0,1940.7,1939.3,1.1965]
[1617290385963,30.0,1940.7,1939.7,2.90695]
[1617290386162,30.0,1940.7,1938.5,2.0]
[1617290386762,32.0,1940.7,1938.5,2.0]
[1617290388066,32.0,1940.7,1939.8,2.90695]
[1617290388466,2.0,1940.7,1939.8,2.90695]
[1617290388666,30.0,1940.6,1939.8,2.90695]
[1617290388868,2.0,1940.7,1939.8,2.90695]
[1617290389068,2.0,1940.7,1939.8,3.99515]
[1617290389270,30.0,1940.9,1939.8,3.99515]
[1617290389668,2.0,1940.8,1939.8,3.99515]
[1617290389868,31.2313,1940.8,1939.8,3.99515]
[1617290390068,31.2313,1940.8,1940.0,2.90695]
[1617290391070,31.2313,1940.8,1939.3,75.3079]
[1617290391771,33.2313,1940.8,1939.3,75.3079]
[1617290391973,33.2313,1940.8,1940.0,2.90695]
[1617290393874,33.2313,1940.8,1939.3,75.3079]
[1617290394076,33.2313,1940.8,1939.6,2.90695]
[1617290396074,33.2313,1940.8,1939.8,2.90695]
[1617290398178,2.90695,1939.9,1939.8,2.90695]
[1617290398380,30.0,1940.8,1939.8,2.90695]
[1617290398578,32.0,1941.3,1939.8,3.98165]
[1617290399579,32.0,1941.3,1939.8,2.90695]
[1617290400079,2.90695,1939.9,1939.8,2.90695]
[1617290400882,4.54545,1939.9,1939.8,2.90695]
[1617290401686,1.6385,1939.9,1939.8,2.90695]
[1617290401888,1.006,1940.7,1939.8,2.90695]
[1617290402094,1.006,1940.7,1940.1,2.90695]
[1617290402302,1.006,1940.7,1939.3,75.3079]
[1617290404097,1.006,1940.7,1939.6,2.90695]
[1617290405505,69.5758,1940.6,1938.5,2.0]
[1617290405698,32.0,1940.5,1938.5,2.0]
[1617290406188,32.0,1940.5,1938.6,2.90695]
[1617290406389,0.03006319,1940.4,1938.6,2.90695]
[1617290406588,3.63716319,1940.4,1938.6,2.90695]
[1617290406790,33.42076357,1940.3,1938.6,2.90695]
[1617290407188,33.3907,1940.3,1938.6,2.90695]
[1617290408092,32.0,1940.3,1938.6,2.90695]
[1617290408293,30.0,1940.3,1939.3,2.90695]
[1617290410202,30.0,1940.3,1939.5,2.90695]
[1617290411001,30.0,1940.3,1938.5,1.4608]
[1617290411202,31.1403,1940.3,1938.1,69.5758]
[1617290412105,31.1403,1940.3,1938.8,2.90695]
[1617290412106,2.0,1940.2,1938.8,2.90695]
[1617290412303,30.0,1940.1,1938.8,2.90695]
[1617290413608,2.0,1940.0,1938.8,2.90695]
[1617290413807,30.0,1939.9,1938.8,2.90695]
[1617290414007,31.0626,1939.9,1938.8,2.90695]
[1617290414206,2.90695,1938.9,1938.6,2.90695]
[1617290415807,30.0,1939.9,1938.6,2.90695]
[1617290416007,30.0,1939.9,1938.6,4.03775]
[1617290416209,30.0,1939.9,1939.4,2.90695]
[1617290416406,30.0,1939.9,1939.4,4.29245]
[1617290417308,2.584,1940.4,1939.4,4.29245]
[1617290417508,30.0,1940.2,1939.4,4.29245]
[1617290418209,2.90695,1939.5,1939.4,4.29245]
[1617290419608,2.90695,1939.5,1939.4,65.45845]
[1617290420008,2.90695,1939.5,1939.4,4.29245]
[1617290422411,2.90695,1939.5,1939.4,76.62725]
[1617290424709,2.90695,1939.5,1939.4,78.62725]
[1617290425711,2.584,1940.4,1939.4,78.62725]
[1617290426312,2.584,1940.4,1939.9,2.90695]
[1617290426512,2.584,1940.4,1939.9,5.98865]
[1617290428014,2.584,1940.4,1940.2,66.2352]
[1617290428215,2.90695,1940.5,1940.3,2.90695]
[1617290428414,2.90695,1940.5,1940.3,4.40895]
[1617290429615,2.90695,1940.5,1940.3,2.90695]
[1617290438625,44.0,1941.4,1940.3,2.90695]
[1617290440326,44.0,1941.4,1940.7,2.90695]
[1617290440527,44.0,1941.4,1940.2,70.6446]
[1617290442429,44.0,1941.4,1940.9,2.90695]
[1617290442630,44.0,1941.4,1940.2,70.6446]
[1617290442830,45.5698,1941.4,1940.2,70.6446]
[1617290443533,0.01503676,1941.3,1940.2,70.6446]
[1617290444232,45.58483168,1941.4,1939.4,3.0329]
[1617290444432,44.01503168,1941.4,1940.9,68.6319]
[1617290444631,44.01503168,1941.4,1940.9,70.2634]
[1617290445032,44.0,1941.4,1940.9,70.2634]
[1617290446433,44.0,1941.4,1941.3,3.91305]
[1617290448135,0.03005226,1942.2,1941.4,61.2488]
[1617290448136,0.01502544,1942.2,1941.4,61.2488]
[1617290448338,0.01502544,1942.2,1942.1,2.90695]
[1617290448537,2.90695,1942.5,1942.1,4.55945]
[1617290448735,30.0,1942.4,1942.1,4.55945]
[1617290449639,2.90695,1942.5,1942.1,4.55945]
[1617290450237,2.90695,1942.5,1942.1,34.55945]
[1617290450437,2.90695,1942.5,1942.4,2.90695]
[1617290453539,2.90695,1942.5,1942.3,69.8119]
[1617290454441,2.90695,1942.5,1942.3,72.71885]
[1617290454944,4.04615,1942.5,1942.3,72.71885]
[1617290455141,4.04615,1942.5,1942.3,69.8119]
[1617290456043,2.90695,1942.5,1942.3,69.8119]
[1617290456241,2.90695,1942.5,1942.3,69.7919]
[1617290456445,2.90695,1942.5,1942.3,72.69885]
[1617290457647,2.90695,1942.5,1942.3,102.69885]
[1617290458248,2.90695,1942.5,1942.3,72.69885]
[1617290459045,2.90695,1942.5,1942.3,102.69885]
[1617290459544,2.90695,1942.5,1942.3,104.25585]
[1617290460146,2.90695,1942.5,1942.3,74.25585]
[1617290460347,2.90695,1942.5,1942.3,124.25585]
[1617290464552,2.90695,1942.5,1942.3,54.46395]
[1617290464752,2.90695,1942.5,1942.3,84.46395]
[1617290468057,2.90695,1942.5,1942.3,52.90695]
[1617290468257,2.90695,1942.5,1942.3,50.0]
[1617290469160,2.90695,1942.5,1942.4,30.0]
[1617290469558,0.05977081,1944.1,1943.4,70.7071]
[1617290469559,0.01494013,1944.1,1943.4,70.7071]
[1617290469760,0.01494013,1944.1,1943.5,30.0]
[1617290469960,0.47808413,1944.5,1943.5,30.0]
[1617290469961,16.01493708,1944.6,1943.5,30.0]
[1617290470362,16.0,1944.6,1943.5,30.0]
[1617290470561,16.0,1944.6,1944.5,80.5173]
[1617290470763,16.0,1944.6,1944.5,110.5173]
[1617290471962,16.0,1944.6,1944.5,110.5073]
[1617290472567,18.90695,1944.6,1944.5,110.5073]
[1617290473369,18.90695,1944.6,1944.5,110.4973]
[1617290474169,18.90695,1944.6,1944.5,99.4973]
[1617290476472,18.90695,1944.6,1944.5,99.4873]
[1617290479276,18.90695,1944.6,1944.5,149.4873]
[1617290480780,16.0,1944.6,1944.5,149.4873]
[1617290482484,2.90695,1944.8,1944.5,51.0409]
[1617290482685,2.90695,1944.6,1944.5,50.0]
[1617290487491,4.90695,1944.6,1944.5,50.0]
[1617290487689,2.90695,1944.6,1944.5,50.0]
[1617290488091,4.90695,1944.6,1944.5,50.0]
[1617290488291,2.90695,1944.6,1944.5,50.0]
[1617290490493,4.90695,1944.6,1944.5,50.0]
[1617290491494,34.90695,1944.6,1941.6,15.0884]
[1617290491693,34.90695,1944.6,1943.0,80.7004]
[1617290492297,34.90695,1944.6,1943.1,14.4455]
[1617290492697,2.90695,1943.2,1943.1,14.4455]
[1617290492897,4.47595,1943.2,1943.1,14.4455]
[1617290494099,2.90695,1943.2,1943.1,14.4255]
[1617290494499,4.28695,1943.2,1943.1,14.4255]
[1617290495402,6.28695,1943.2,1943.1,14.4255]
[1617290495605,7.32975,1943.2,1943.1,14.4255]
[1617290496009,6.28695,1943.2,1943.1,11.9203]
[1617290496205,6.28695,1943.2,1943.1,9.4151]
[1617290496403,6.28695,1943.2,1943.1,7.06]
[1617290496606,6.28695,1943.2,1942.1,63.9038]
[1617290496805,2.90695,1942.2,1942.1,63.9038]
[1617290498706,4.28375,1942.2,1942.1,63.9038]
[1617290499808,2.90695,1942.2,1942.1,63.9038]
[1617290500809,2.90695,1942.2,1942.1,66.81075]
[1617290502312,2.90695,1942.2,1942.1,63.9038]
[1617290504312,4.45095,1942.2,1942.1,63.9038]
[1617290506115,6.45095,1942.2,1941.5,2.90695]
[1617290506320,6.45095,1942.2,1941.0,71.5256]
[1617290506912,6.45095,1942.2,1941.1,2.90695]
[1617290506913,3.544,1942.2,1941.1,2.90695]
[1617290507112,3.544,1942.2,1941.5,63.5336]
[1617290509016,2.90695,1941.6,1941.5,63.5336]
[1617290509215,4.28935,1941.6,1940.7,15.2257]
[1617290509415,4.28935,1941.6,1940.7,86.529]
[1617290509814,6.28935,1941.6,1940.7,86.529]
[1617290510415,4.28935,1941.6,1940.7,86.529]
[1617290511015,1.3824,1941.6,1940.8,2.90695]
[1617290511815,2.0,1942.0,1940.8,2.90695]
[1617290512917,2.0,1942.0,1941.1,2.90695]
[1617290513117,1.0377,1942.1,1941.1,2.90695]
[1617290513318,1.544,1942.2,1941.1,2.90695]
[1617290513518,2.0,1942.3,1941.1,4.18125]
[1617290513718,2.0,1942.3,1941.3,65.9984]
[1617290514719,32.0,1942.3,1941.3,65.9984]
[1617290514920,2.90695,1941.4,1941.3,65.9984]
[1617290515719,4.12655,1941.4,1940.8,2.90695]
[1617290516921,2.90695,1940.9,1940.8,2.90695]
[1617290519023,4.01815,1940.9,1940.8,2.90695]
[1617290520023,4.01815,1940.9,1940.7,15.2257]
[1617290520222,6.01815,1940.9,1940.7,15.2257]
[1617290521524,6.01815,1940.9,1940.7,14.5294]
[1617290522323,4.01815,1940.9,1940.7,14.5294]
[1617290522523,2.90695,1940.9,1940.7,14.5294]
[1617290523123,2.90695,1940.9,1940.7,7.1982]
[1617290523324,4.45825,1940.9,1940.7,7.1982]
[1617290523523,4.45825,1940.9,1940.0,70.6355]
[1617290523923,6.45825,1940.9,1940.0,70.6355]
[1617290524424,36.45825,1940.9,1940.0,70.6355]
[1617290524624,6.45825,1940.9,1940.0,70.6355]
[1617290525026,2.90695,1940.1,1940.0,70.6355]
[1617290528246,15.0,1940.8,1939.9,32.90695]
[1617290528435,15.0,1940.8,1940.7,62.0889]
[1617290528631,15.0,1940.8,1940.7,63.4378]
[1617290529028,17.90695,1940.8,1940.7,63.4378]
[1617290530427,17.90695,1940.8,1940.7,62.0889]
[1617290533527,15.0,1940.8,1940.7,62.0889]
[1617290533929,15.0,1940.8,1940.7,63.5185]
[1617290535329,15.0,1940.8,1940.7,96.42545]
[1617290536234,15.0,1940.8,1940.7,66.42545]
[1617290536831,15.0,1940.8,1940.7,64.99585]
[1617290537635,15.0,1940.8,1940.7,96.25625]
[1617290539032,15.0,1940.8,1940.7,98.25625]
[1617290540738,15.0,1940.8,1940.7,36.16735]
[1617290541339,2.584,1942.0,1940.7,36.16735]
[1617290541538,2.90695,1942.5,1941.4,63.4129]
[1617290541739,2.90695,1942.5,1941.5,32.0]
[1617290542938,2.90695,1942.5,1941.5,30.0]
[1617290543339,2.0,1943.0,1941.9,2.90695]
[1617290544538,2.0,1943.0,1941.4,52.71465]
[1617290544738,3.2101,1943.0,1941.4,52.71465]
[1617290545140,3.2101,1943.0,1940.1,1.0188]
[1617290545339,3.2101,1943.0,1941.7,64.9337]
[1617290545539,1.2101,1943.0,1941.7,96.0741]
[1617290545740,13.775,1943.1,1941.7,96.0741]
[1617290547140,13.775,1943.1,1941.7,66.0741]
[1617290547340,2.90695,1941.8,1941.7,64.9337]
[1617290547539,2.90695,1941.8,1941.6,2.90695]
[1617290548846,2.90695,1941.8,1941.6,32.90695]
[1617290551247,2.90695,1941.8,1941.6,2.90695]
[1617290551448,2.90695,1941.8,1941.5,60.6506]